bitfinex/quotes_ETHUSD_20220212
["timestamp","ask_amount","ask_price","bid_price","bid_amount"]
[1644643377899,3.6194,2932.9,2932.0,1.3]
[1644643378501,3.6194,2932.9,2932.3,0.00242873]
[1644643379101,1.33763305,2933.1,2932.3,0.00242873]
[1644643379602,1.33763305,2933.1,2932.2,0.85272]
[1644643379802,1.33763305,2933.1,2932.6,0.00807485]
[1644643380804,1.33763305,2933.1,2931.9,1.70544]
[1644643381005,3.50058139,2933.0,2932.7,0.00807444]
[1644643381204,0.1703,2932.9,2932.7,0.00807444]
[1644643381448,0.1703,2933.0,2932.7,0.0031561]
[1644643381947,0.1703,2933.0,2932.2,0.03369198]
[1644643382346,0.1713,2933.0,2932.2,0.03369198]
[1644643382951,0.1713,2933.2,2932.2,0.03369198]
[1644643383350,0.1713,2933.2,2932.5,0.00242254]
[1644643383952,1.30713817,2933.2,2932.5,0.00242254]
[1644643384150,0.001,2933.1,2932.5,0.00242254]
[1644643384350,0.001,2933.1,2932.2,0.03369198]
[1644643384552,0.64367911,2932.8,2932.6,0.00806256]
[1644643384757,0.64367911,2932.8,2932.6,0.0015801]
[1644643384758,0.1703,2932.7,2932.6,0.0015801]
[1644643385207,1.0268996,2932.7,2932.6,0.0015801]
[1644643385403,0.1703,2932.7,2932.6,0.0015801]
[1644643385604,1.04912567,2932.6,2932.2,0.03369198]
[1644643385804,0.64231552,2932.4,2932.2,0.03369198]
[1644643386004,0.1705,2932.3,2932.2,0.03369198]
[1644643386405,0.81281552,2932.3,2932.2,0.03369198]
[1644643386605,0.1705,2932.3,2932.2,0.03369198]
[1644643386806,1.02358,2932.5,2931.5,0.09672167]
[1644643387007,4.59602074,2932.5,2931.5,0.09672167]
[1644643387209,1.09419204,2932.0,2931.5,0.09672167]
[1644643387710,4.59602074,2932.5,2931.5,0.09672167]
[1644643388107,4.59602074,2932.5,2931.6,0.00241793]
[1644643388108,0.8530797,2932.4,2931.6,0.00241793]
[1644643388309,4.56372662,2932.3,2931.6,0.00241793]
[1644643389146,4.56372662,2932.3,2931.4,0.20408073]
[1644643389446,4.56372662,2932.3,2931.8,0.00241777]
[1644643389447,0.8531338,2932.2,2931.8,0.00241777]
[1644643389643,5.01729208,2932.1,2931.8,0.00241777]
[1644643390248,5.01729208,2932.1,2931.4,0.03358073]
[1644643390444,5.01729208,2932.1,2931.8,0.00804841]
[1644643391446,5.01729208,2932.1,2931.4,0.03358073]
[1644643391648,5.01729208,2932.1,2931.0,0.00274732]
[1644643391846,5.01729208,2932.1,2931.8,0.00804841]
[1644643392247,4.81815716,2932.1,2931.8,0.00804841]
[1644643392702,4.81815716,2932.1,2931.0,0.00274732]
[1644643392904,4.81815716,2932.1,2931.8,0.00804841]
[1644643393100,4.85776101,2932.1,2931.8,0.00804841]
[1644643393501,4.83031859,2932.1,2931.8,0.00804841]
[1644643393700,1.32414212,2932.1,2931.8,0.00804841]
[1644643393900,1.32414212,2932.1,2931.0,0.00274732]
[1644643394102,1.32414212,2932.1,2931.8,0.00804841]
[1644643394301,3.92086395,2932.3,2931.8,0.00804841]
[1644643394302,0.1705,2932.2,2931.8,0.00804841]
[1644643395005,0.02473215,2932.3,2931.8,0.00804841]
[1644643395203,0.01273215,2932.3,2931.5,0.00274732]
[1644643395407,0.01273215,2932.3,2931.9,0.17854827]
[1644643395604,0.01273215,2932.3,2931.9,0.01079559]
[1644643396451,0.17908523,2932.9,2931.9,0.01079559]
[1644643396452,0.00070399,2932.0,2931.9,0.00274732]
[1644643396653,0.00958544,2932.9,2931.9,1.10299368]
[1644643396856,0.47821791,2932.8,2932.0,0.3]
[1644643397055,0.47821791,2932.8,2932.0,0.30274732]
[1644643397255,0.47821791,2932.8,2932.1,0.00274732]
[1644643397456,0.47821791,2932.8,2932.2,0.85271]
[1644643397655,0.001,2932.9,2932.3,0.00274732]
[1644643397656,0.47821791,2932.7,2932.3,0.00274732]
[1644643397856,0.00958607,2932.9,2932.3,0.01079449]
[1644643398060,0.47822239,2932.8,2932.3,0.01079449]
[1644643398659,0.47822239,2932.8,2932.3,0.00274732]
[1644643398860,0.47822239,2932.7,2932.3,0.00274732]
[1644643399160,0.001,2932.9,2932.4,0.86069676]
[1644643399161,0.00958638,2932.9,2932.4,0.86069676]
[1644643399561,0.00858638,2932.9,2932.4,0.86069676]
[1644643399961,0.001,2933.0,2932.4,0.85265]
[1644643400198,0.00617385,2932.9,2932.4,0.85265]
[1644643400897,0.47822711,2932.8,2932.4,0.85265]
[1644643401101,3.64641185,2933.2,2932.3,0.00274732]
[1644643401299,0.00617385,2932.9,2932.3,0.00274732]
[1644643401497,0.47822299,2932.8,2932.4,0.02800909]
[1644643402399,0.1713,2933.2,2932.4,0.02800909]
[1644643402400,0.001,2933.2,2932.4,1.18065909]
[1644643402600,8.00238059,2933.6,2932.5,0.1704]
[1644643402601,0.00617374,2932.9,2932.5,0.1704]
[1644643403003,0.00617374,2932.9,2932.5,1.0229684]
[1644643403206,0.00617374,2932.9,2932.5,2.0229684]
[1644643403403,0.001,2933.5,2932.5,2.8754684]
[1644643403607,0.46510916,2933.5,2932.5,2.8754684]
[1644643403858,0.00858757,2932.9,2932.6,0.3]
[1644643404050,0.00858757,2932.9,2932.6,1.15259]
[1644643404349,0.00858757,2932.9,2932.6,0.3]
[1644643404750,0.00489802,2933.5,2932.5,0.7704]
[1644643404953,0.00858767,2932.9,2932.7,0.85256]
[1644643405354,0.00858767,2932.9,2932.7,1.45256]
[1644643405956,0.00489802,2933.5,2932.7,1.45256]
[1644643406157,0.46395141,2933.4,2932.7,1.62286]
[1644643406456,0.00858767,2932.9,2932.7,1.62286]
[1644643407055,0.03924239,2933.5,2932.7,1.62286]
[1644643407056,0.00489802,2933.5,2932.7,1.62286]
[1644643407256,0.46416634,2933.4,2932.7,1.02286]
[1644643407456,0.00858767,2932.9,2932.7,0.85256]
[1644643407704,0.00858767,2932.9,2932.6,3.03292639]
[1644643407903,0.00858767,2932.9,2932.6,2.33292639]
[1644643408103,0.00858767,2932.9,2932.6,0.62791639]
[1644643408307,0.17519802,2933.5,2932.6,0.32791639]
[1644643408504,0.00858767,2932.9,2932.6,0.02791639]
[1644643409505,0.17519802,2933.5,2932.6,0.02791639]
[1644643409705,0.00858767,2932.9,2932.7,0.85256]
[1644643410107,0.00858767,2932.9,2932.7,1.15256]
[1644643410306,0.00858767,2932.9,2932.7,1.45256]
[1644643410708,0.17519802,2933.5,2932.7,1.45256]
[1644643410913,0.46476264,2933.4,2932.9,0.8525]
[1644643411549,0.46476264,2933.4,2932.7,1.62787508]
[1644643411749,0.46476264,2933.4,2932.7,0.62787508]
[1644643411949,0.46476264,2933.4,2932.7,1.32787508]
[1644643412148,0.00858746,2933.2,2932.7,0.32787508]
[1644643412349,0.00858746,2933.2,2932.7,1.32787508]
[1644643412550,0.00858746,2933.2,2932.8,0.85253]
[1644643412755,0.00858746,2933.2,2932.8,1.11955167]
[1644643412955,0.00858746,2933.2,2932.9,0.3]
[1644643413155,0.00489802,2933.8,2932.9,0.3]
[1644643413355,0.00858751,2933.1,2933.0,1.70457]
[1644643413557,0.00858751,2933.1,2933.0,2.00457]
[1644643413756,0.00858751,2933.1,2933.0,3.00457]
[1644643414356,0.00389802,2933.7,2933.0,2.00457]
[1644643414557,0.00858746,2933.2,2933.1,1.0]
[1644643414756,0.00858746,2933.2,2933.0,2.00457]
[1644643415202,0.00858746,2933.2,2933.0,2.17487]
[1644643415602,0.17519802,2934.0,2933.0,3.0272833]
[1644643415801,0.03434454,2933.7,2933.3,0.85238]
[1644643416001,0.46552057,2933.6,2933.3,0.85238]
[1644643416203,0.46941859,2933.6,2933.3,0.85238]
[1644643416403,0.46552057,2933.5,2933.3,0.85238]
[1644643416803,0.46552057,2933.4,2933.2,0.3]
[1644643417106,0.46552057,2933.3,2933.1,0.02382973]
[1644643417403,0.46552057,2933.2,2933.1,0.02382973]
[1644643417602,0.46552057,2933.4,2933.1,0.02382973]
[1644643417808,0.46552057,2933.3,2933.1,0.02382973]
[1644643418006,1.62398207,2933.3,2933.1,0.02382973]
[1644643418206,0.46652057,2933.2,2933.1,0.02382973]
[1644643420351,3.978661,2933.2,2933.1,0.02382973]
[1644643420551,4.1944553,2933.2,2933.1,0.02382973]
[1644643420750,5.1944553,2933.2,2933.1,0.02382973]
[1644643421449,3.3,2933.1,2932.3,0.10000845]
[1644643421650,0.94266794,2932.4,2932.3,0.09725703]
[1644643421851,1.1594,2932.9,2932.5,0.00804952]
[1644643422053,0.46004815,2932.8,2932.5,0.00804952]
[1644643422701,1.15028068,2932.5,2931.8,1.3]
[1644643422902,0.45904815,2932.4,2931.9,0.97945889]
[1644643423700,0.45904815,2932.4,2931.9,1.83225889]
[1644643423902,0.45904815,2932.3,2931.9,0.85554997]
[1644643424101,0.001,2932.8,2931.9,0.85554997]
[1644643424102,0.45904815,2932.2,2931.9,0.85554997]
[1644643424300,0.1715,2932.8,2932.0,0.00803063]
[1644643424301,0.00858698,2932.7,2932.0,0.00803063]
[1644643424502,0.45906364,2932.6,2932.0,0.00803063]
[1644643424903,0.45906364,2932.6,2932.1,0.85274]
[1644643425102,0.45906364,2932.6,2932.1,0.00274997]
[1644643425404,0.45906364,2932.6,2932.2,0.00803021]
[1644643426203,0.45906364,2932.6,2932.2,0.01078018]
[1644643426454,0.45906364,2932.6,2931.9,0.47324997]
[1644643426652,0.45906364,2932.5,2932.3,0.00802994]
[1644643426854,0.47383184,2932.4,2932.3,0.00802994]
[1644643427658,0.47383184,2932.4,2932.2,0.00274997]
[1644643427856,0.0147682,2932.4,2932.2,0.01078005]
[1644643428859,0.0147682,2932.4,2932.2,0.00274997]
[1644643429062,0.0147682,2932.4,2932.2,0.01078018]
[1644643429258,0.45909976,2932.3,2932.2,0.01078018]
[1644643429659,0.45909976,2932.3,2932.2,0.00803021]
[1644643430103,0.45909976,2932.3,2932.1,0.00274997]
[1644643430305,0.0147682,2932.4,2932.1,0.01078032]
[1644643430505,0.45910867,2932.3,2932.1,0.01078032]
[1644643430705,0.0147682,2932.4,2932.1,0.01078032]
[1644643431207,0.4591875,2932.3,2932.1,0.00274997]
[1644643431406,0.4591875,2932.3,2932.1,0.01078032]
[1644643431607,0.47291383,2932.3,2932.1,0.01078032]
[1644643431805,0.01372633,2932.3,2932.1,0.01078032]
[1644643432404,0.01372633,2932.3,2932.1,0.00274997]
[1644643432605,0.01372633,2932.3,2932.1,0.01078046]
[1644643433410,0.01372633,2932.3,2932.1,0.86352046]
[1644643433711,0.01372633,2932.3,2932.1,0.85548997]
[1644643433957,0.01372633,2932.3,2932.1,0.86352046]
[1644643434161,0.01372633,2932.3,2932.2,0.98178639]
[1644643434557,0.01372633,2932.3,2932.2,1.58178639]
[1644643435559,0.01372633,2932.3,2932.2,2.07278639]
[1644643435960,0.01372633,2932.3,2932.2,3.07278639]
[1644643441554,0.00809624,2932.7,2932.5,0.86285248]
[1644643441755,0.00809624,2932.7,2932.6,2.68686279]
[1644643441957,0.81218476,2933.3,2932.6,1.83432639]
[1644643442157,0.4567394,2933.2,2932.7,0.98178639]
[1644643442354,0.4577394,2933.2,2932.7,1.98178639]
[1644643442554,1.09942416,2933.2,2932.7,1.6]
[1644643442758,0.001,2933.1,2932.7,0.6]
[1644643442958,0.001,2933.1,2932.7,1.3]
[1644643443660,0.00816848,2933.0,2932.7,1.6]
[1644643443858,0.4567394,2932.9,2932.7,1.6]
[1644643444259,0.4567394,2932.9,2932.7,1.45256]
[1644643444661,0.4567394,2932.8,2932.7,1.45256]
[1644643444858,0.001,2933.2,2932.7,1.45256]
[1644643444859,0.00816855,2932.9,2932.7,2.43584567]
[1644643445103,0.4567394,2932.8,2932.7,1.45256]
[1644643445303,0.4567394,2932.8,2932.7,2.43588247]
[1644643445903,0.4567394,2932.8,2932.7,3.28838707]
[1644643446302,0.4567394,2932.8,2932.7,4.28838707]
[1644643446504,0.4567394,2932.8,2932.7,3.28838707]
[1644643446702,0.4567394,2932.8,2932.7,4.28838707]
[1644643451056,0.00815927,2932.9,2932.7,3.3050646]
[1644643451255,0.45659119,2932.8,2932.7,3.3050646]
[1644643451456,0.45659119,2932.8,2932.7,4.28805398]
[1644643451856,0.00815927,2932.9,2932.7,4.31088996]
[1644643452055,0.45659119,2932.8,2932.7,3.32790058]
[1644643452255,0.45659119,2932.8,2932.7,4.31089475]
[1644643454005,0.45659119,2932.8,2932.7,3.45839015]
[1644643454606,0.44875305,2932.8,2932.7,3.45839015]
[1644643455306,0.001,2933.4,2932.9,0.85247]
[1644643455507,0.03263058,2933.4,2932.9,1.7049213]
[1644643455708,0.03263058,2933.4,2932.9,2.0049213]
[1644643456353,0.64168476,2933.5,2932.9,2.0049213]
[1644643456757,0.00815876,2933.3,2932.9,2.0049213]
[1644643457353,0.00815876,2933.3,2933.0,0.3]
[1644643457555,0.64168476,2933.5,2933.0,0.3]
[1644643457958,0.00815879,2933.2,2933.0,0.3]
[1644643458759,0.64268476,2933.6,2933.0,0.3]
[1644643458959,0.00815879,2933.2,2933.1,0.85242]
[1644643459360,0.00815879,2933.2,2933.1,1.15242]
[1644643459961,0.001,2933.6,2933.1,1.15242]
[1644643460202,0.00815875,2933.3,2933.2,0.8523745]
[1644643460408,0.00815875,2933.3,2933.1,0.3]
[1644643460602,0.00815875,2933.3,2932.8,3.4096589]
[1644643460804,0.00815875,2933.3,2932.9,0.1703]
[1644643461203,0.64268476,2933.6,2932.9,0.1703]
[1644643461204,0.64168476,2933.5,2932.9,0.1703]
[1644643461405,0.00815879,2933.2,2933.1,0.02279023]
[1644643461603,0.00815879,2933.2,2932.8,1.88525875]
[1644643461803,0.00815879,2933.2,2932.8,2.05555875]
[1644643462007,0.00815879,2933.2,2932.5,0.01032248]
[1644643462008,3.4,2932.8,2932.5,0.01032248]
[1644643462209,0.8565996,2932.6,2932.5,0.01032248]
[1644643462409,1.28342857,2932.6,2932.5,0.01032248]
[1644643462606,0.1705,2932.6,2932.5,0.01032248]
[1644643463009,2.58289192,2932.6,2932.5,0.01032248]
[1644643463206,2.58289192,2932.6,2932.4,2.292e-05]
[1644643463207,3.4,2932.5,2932.4,2.292e-05]
[1644643463407,3.4,2932.5,2932.3,0.00274997]
[1644643463408,3.4,2932.4,2932.3,0.00274997]
[1644643463608,1.14206879,2932.0,2931.5,0.25]
[1644643463860,0.64205671,2931.9,2931.6,0.00274997]
[1644643464059,0.64205671,2931.9,2931.2,0.00274997]
[1644643464660,4.66842242,2932.0,2931.2,0.00274997]
[1644643464661,1.14206879,2932.0,2931.2,0.00274997]
[1644643464860,1.14206879,2932.0,2931.2,1.00274997]
[1644643465060,1.14206879,2932.0,2931.3,0.00274997]
[1644643466059,4.48855671,2932.2,2931.3,0.00274997]
[1644643466262,3.49255192,2932.1,2931.3,0.00274997]
[1644643467161,4.37573653,2932.1,2931.3,0.00274997]
[1644643467361,4.48855671,2932.2,2931.3,0.00274997]
[1644643467604,3.8465,2932.2,2931.6,0.00801535]
[1644643467809,4.017,2932.2,2931.6,0.00801535]
[1644643468411,4.017,2932.2,2931.3,0.00274997]
[1644643468711,1.00049583,2932.1,2931.8,0.00801481]
[1644643469611,1.00049583,2932.1,2931.3,0.00274997]
[1644643470016,1.00049583,2932.1,2931.8,0.00801467]
[1644643470914,1.00049583,2932.1,2931.3,0.00274997]
[1644643471114,1.00049583,2932.1,2931.8,0.00801467]
[1644643471559,3.8465,2932.2,2931.8,0.00801467]
[1644643471760,0.01573347,2932.1,2931.8,0.00801467]
[1644643472161,0.01573347,2932.1,2931.3,0.17324997]
[1644643472361,0.01573347,2932.1,2931.8,0.00801467]
[1644643473368,0.01573347,2932.1,2931.3,0.00274997]
[1644643473569,0.01573347,2932.1,2931.8,0.00801467]
[1644643474570,0.40290475,2932.0,2931.2,0.00274997]
[1644643474769,0.40290475,2932.0,2931.8,0.00801467]
[1644643475613,0.40290475,2932.0,2931.2,0.00274997]
[1644643476013,0.40290475,2932.0,2931.8,0.00801481]
[1644643476815,0.40290475,2932.0,2931.4,0.00274997]
[1644643477016,0.41596077,2932.0,2931.4,0.00274997]
[1644643477218,0.40290475,2931.9,2931.8,0.00801481]
[1644643478222,0.40290475,2931.9,2931.4,0.00274997]
[1644643478419,0.40290475,2931.9,2931.7,0.00801494]
[1644643478620,0.40290475,2931.9,2931.1,0.16333012]
[1644643478861,0.40290475,2931.9,2931.3,0.1705]
[1644643479052,0.40290475,2931.9,2931.1,0.1705]
[1644643479255,0.40290475,2931.9,2931.2,0.00274997]
[1644643479454,0.40290475,2931.9,2931.0,0.10206555]
[1644643479854,0.40290475,2931.9,2931.0,0.95502555]
[1644643480053,0.40290475,2931.9,2931.1,0.00274997]
[1644643480855,0.00621427,2931.6,2931.1,0.00274997]
[1644643481656,0.18628255,2932.1,2931.1,0.00274997]
[1644643481657,0.03256095,2931.9,2931.1,0.00274997]
[1644643482155,0.00621427,2931.5,2931.1,0.00274997]
[1644643482356,0.00621427,2931.5,2931.2,0.1705]
[1644643483009,0.03256095,2931.9,2931.2,0.1705]
[1644643483211,0.00858886,2931.5,2931.3,0.00274997]
[1644643483411,0.00858886,2931.5,2931.2,0.1205]
[1644643484210,0.03256095,2931.9,2931.2,0.1205]
[1644643484411,0.00858886,2931.5,2931.3,0.00274997]
[1644643484611,0.00858886,2931.5,2931.2,0.1205]
[1644643485312,3.5523916,2931.7,2931.2,0.1205]
[1644643485613,0.00858886,2931.5,2931.2,0.12324997]
[1644643486013,0.00858886,2931.5,2931.2,0.00274997]
[1644643486212,0.00858886,2931.5,2931.1,0.00791651]
[1644643486452,0.00858886,2931.5,2931.1,0.01066648]
[1644643486657,0.39758492,2931.4,2931.1,0.00274997]
[1644643486853,4.62076629,2931.3,2931.1,0.01066648]
[1644643487055,4.62807989,2931.3,2931.1,0.00791651]
[1644643487252,1.1298717,2931.3,2931.1,0.00791651]
[1644643487453,0.39358185,2931.2,2931.1,0.00791651]
[1644643487656,0.39358185,2931.2,2930.8,0.00274997]
[1644643488057,0.39358185,2931.2,2931.1,0.00238269]
[1644643488258,0.39359287,2931.2,2931.1,0.00238269]
[1644643488661,1.1298717,2931.3,2931.1,0.00238269]
[1644643488861,1.1298717,2931.3,2930.4,0.85592997]
[1644643489163,1.1298717,2931.3,2931.0,0.00238273]
[1644643489360,0.01677345,2931.5,2931.0,0.00238273]
[1644643489560,0.39359642,2931.4,2931.0,0.00238273]
[1644643489759,0.01677345,2931.5,2931.0,0.00238273]
[1644643489960,0.3936016,2931.4,2931.0,0.00238273]
[1644643490210,0.3936016,2931.4,2930.5,0.00274997]
[1644643490411,0.3936016,2931.4,2931.1,0.00238269]
[1644643490611,0.91142773,2931.5,2931.1,0.00238269]
[1644643491011,0.01677345,2931.5,2931.1,0.00238269]
[1644643491415,0.01677345,2931.5,2930.6,0.00274997]
[1644643491611,0.05186388,2931.9,2931.1,0.00791651]
[1644643491612,0.02379137,2931.2,2931.1,0.00791651]
[1644643491815,0.01209137,2931.2,2931.1,0.00791651]
[1644643492619,0.01209137,2931.2,2930.9,0.00274997]
[1644643492818,0.01209137,2931.2,2931.0,0.00791665]
[1644643493018,0.01209137,2931.2,2931.0,0.86090665]
[1644643493418,0.01209137,2931.2,2931.1,1.1114386]
[1644643493620,0.01209137,2931.2,2931.1,2.80995925]
[1644643494457,0.01209137,2931.2,2931.1,3.80995925]
[1644643496959,0.00859662,2931.3,2931.2,1.70575]
[1644643497158,0.00859662,2931.3,2931.2,3.40427065]
[1644643497357,1.25,2932.1,2931.2,4.70427065]
[1644643497603,0.00859668,2931.4,2931.3,0.85561107]
[1644643498409,0.00859668,2931.4,2931.3,0.85561997]
[1644643498610,0.001,2932.1,2931.3,0.85561997]
[1644643498809,0.0085966,2931.5,2931.3,0.85561997]
[1644643499409,0.0085966,2931.5,2931.3,1.34661997]
[1644643499613,0.0085966,2931.5,2931.3,2.34661997]
[1644643499810,0.001,2932.1,2931.3,2.34661997]
[1644643500010,0.00859656,2931.5,2931.3,2.34661997]
[1644643500511,0.00859656,2931.5,2931.3,3.19946237]
[1644643500711,0.00859656,2931.5,2931.3,4.05228237]
[1644643500913,0.001,2932.1,2931.3,4.05228237]
[1644643501210,0.00859656,2931.5,2931.3,3.19946237]
[1644643501653,0.02227897,2931.4,2931.3,3.19946237]
[1644643501953,0.02227897,2931.4,2931.3,3.6858988]
[1644643502553,0.001,2932.1,2931.5,0.01375172]
[1644643502757,0.39650118,2932.1,2931.5,0.01650169]
[1644643504361,0.39650118,2932.1,2931.6,1.04159251]
[1644643504559,0.39650118,2932.1,2931.6,1.04434248]
[1644643504762,0.39650118,2932.1,2931.6,1.34434248]
[1644643504959,0.39650118,2932.1,2931.6,0.30274997]
[1644643506405,0.39650118,2932.1,2931.7,1.0442113]
[1644643506604,0.39650118,2932.1,2931.7,1.04696127]
[1644643506806,0.39550118,2932.0,2931.7,1.04696127]
[1644643507007,0.39550118,2931.9,2931.7,1.04696127]
[1644643507206,0.39550118,2931.8,2931.7,1.04696127]
[1644643507410,0.39550118,2931.9,2931.7,1.04696127]
[1644643508410,0.39550118,2931.8,2931.7,1.04696127]
[1644643509856,0.00859628,2931.9,2931.7,1.04696127]
[1644643510058,0.39550118,2931.8,2931.7,1.04696127]
[1644643512059,0.001,2932.3,2931.7,1.04696127]
[1644643512060,0.00794523,2931.9,2931.7,1.04696127]
[1644643512358,0.39550118,2931.8,2931.7,1.04696127]
[1644643513210,0.00794523,2931.9,2931.7,1.04696127]
[1644643513412,0.39550118,2931.8,2931.7,1.04696127]
[1644643514717,0.00344641,2931.9,2931.7,1.34696127]
[1644643514916,3.2593,2932.9,2931.9,2.35]
[1644643514917,0.64357038,2932.6,2931.9,2.35]
[1644643515119,0.37357083,2932.5,2932.0,1.0442113]
[1644643515316,0.37357083,2932.4,2932.1,0.491]
[1644643515516,0.37357083,2932.3,2932.2,1.2145113]
[1644643515715,4.14357038,2933.2,2932.2,2.0055113]
[1644643515916,1.00110415,2933.1,2932.3,1.0442113]
[1644643516115,0.35753377,2933.0,2932.3,1.0442113]
[1644643516362,0.35753377,2932.9,2932.4,1.34354]
[1644643516559,0.64357038,2933.1,2932.5,0.1703]
[1644643516560,0.35753377,2932.8,2932.5,0.1703]
[1644643516760,0.35753377,2932.7,2932.5,0.4703]
[1644643516962,0.35753377,2932.6,2932.5,0.4703]
[1644643517360,0.35753377,2932.7,2932.5,0.1703]
[1644643517562,0.00561399,2932.8,2932.5,4.62083916]
[1644643517563,0.35753377,2932.6,2932.5,4.62083916]
[1644643518066,4.50527561,2933.4,2932.5,6.70284546]
[1644643518067,0.00799401,2932.7,2932.5,6.70284546]
[1644643518266,0.35745762,2932.6,2932.5,1.4703]
[1644643518470,0.35745762,2932.6,2932.5,6.10192102]
[1644643518666,0.35745762,2932.6,2932.5,5.01991641]
[1644643519266,0.00799405,2932.7,2932.5,5.01991641]
[1644643519467,0.00799405,2932.7,2932.5,1.4703]
[1644643519666,0.35721288,2932.6,2932.5,1.4703]
[1644643519868,0.35721288,2932.6,2932.5,4.68654537]
[1644643520111,0.35721288,2932.6,2932.5,5.53907537]
[1644643520505,0.00798493,2932.7,2932.5,5.53907537]
[1644643520707,0.35721288,2932.6,2932.5,5.53907537]
[1644643520906,0.35721288,2932.6,2932.5,2.32283]
[1644643521110,0.35721288,2932.6,2932.5,1.4703]
[1644643521808,0.00798493,2932.7,2932.5,1.4703]
[1644643522010,0.35721288,2932.6,2932.5,0.1703]
[1644643522611,0.35721288,2932.6,2932.5,0.03694823]
[1644643522817,0.35721288,2932.6,2932.1,0.09672167]
[1644643523014,0.35721288,2932.5,2932.1,0.09672167]
[1644643523214,0.35721288,2932.4,2932.1,0.94944167]
[1644643523415,0.35721288,2932.3,2932.1,1.94944167]
[1644643523615,0.35721288,2932.2,2932.1,2.54944167]
[1644643523868,0.52771288,2932.2,2931.7,0.00274997]
[1644643524061,0.35721288,2932.1,2931.5,0.02170831]
[1644643524260,0.1705,2932.0,2931.5,0.02170831]
[1644643524460,1.21040288,2931.9,2931.5,0.02170831]
[1644643524661,0.35821288,2931.8,2931.5,0.02170831]
[1644643524959,0.35821288,2931.8,2931.5,0.01375172]
[1644643524960,0.35721288,2931.7,2931.5,0.01375172]
[1644643525366,0.35721288,2931.6,2931.5,0.02170837]
[1644643525761,0.35721288,2931.9,2931.5,0.02170837]
[1644643525961,0.1784856,2932.0,2931.5,0.02170837]
[1644643525962,0.35721288,2931.8,2931.5,0.02170837]
[1644643526162,0.35721288,2931.7,2931.5,0.02170837]
[1644643526362,0.35721288,2931.6,2931.5,0.01375172]
[1644643526562,0.35721288,2931.8,2931.5,0.02170837]
[1644643526764,0.35721288,2931.7,2931.5,0.02170837]
[1644643526963,0.35721288,2931.6,2931.5,0.02170837]
[1644643527163,0.35721288,2931.8,2931.5,0.02170837]
[1644643527364,0.35721288,2931.8,2931.5,0.01375172]
[1644643527810,0.35721288,2931.8,2931.5,0.02170837]
[1644643528715,0.35721288,2931.8,2931.5,0.01375172]
[1644643528716,3.72106084,2931.7,2931.5,0.01375172]
[1644643528911,3.72106084,2931.7,2931.5,0.02170837]
[1644643528912,0.35721288,2931.6,2931.5,0.02170837]
[1644643529910,0.35721288,2931.6,2931.5,0.01375172]
[1644643530510,0.35721288,2931.7,2931.5,0.01375172]
[1644643530712,3.60933917,2931.9,2931.5,0.01375172]
[1644643530713,0.35721288,2931.6,2931.5,0.01375172]
[1644643531110,0.35721288,2931.7,2931.5,0.01375172]
[1644643531358,0.35721288,2931.6,2931.5,0.01375172]
[1644643531759,0.52771288,2931.6,2931.5,0.01375172]
[1644643532455,0.35721288,2931.6,2931.5,0.01375172]
[1644643541867,0.37609278,2931.6,2931.5,0.01375172]
[1644643543515,0.37609278,2931.6,2931.5,0.01290895]
[1644643544713,0.37709278,2931.6,2931.5,0.01290895]
[1644643545113,0.37609278,2931.6,2931.5,0.01290895]
[1644643553520,0.67609278,2931.6,2931.5,0.01290895]
[1644643553962,0.37609278,2931.6,2931.5,0.01290895]
[1644643554360,0.67609278,2931.6,2931.5,0.01290895]
[1644643554559,0.37609278,2931.6,2931.5,0.01290895]
[1644643557062,4.00244651,2931.6,2931.5,0.01290895]
[1644643557467,0.37709278,2931.6,2931.5,0.01290895]
[1644643557712,0.37609278,2931.6,2931.5,0.01290895]
[1644643559214,4.2331961,2931.6,2931.5,0.01290895]
[1644643559414,4.2341961,2931.6,2931.5,0.01290895]
[1644643559713,4.4046961,2931.6,2931.5,0.01290895]
[1644643560313,5.7046961,2931.6,2931.5,0.01290895]
[1644643560515,6.34826648,2931.6,2931.5,0.01290895]
[1644643561666,5.04826648,2931.6,2931.5,0.01290895]
[1644643561861,4.4046961,2931.6,2931.5,0.01290895]
[1644643562462,0.37709278,2931.6,2931.5,0.01290895]
[1644643562866,0.37609278,2931.6,2931.5,0.01290895]
[1644643564668,0.37609278,2931.6,2931.5,1.27127327]
[1644643565311,0.0188799,2931.6,2931.5,1.27127327]
[1644643565511,0.37136161,2931.6,2931.5,1.27127327]
[1644643567312,0.37136161,2931.6,2931.5,1.10077327]
[1644643567512,0.37050324,2931.6,2931.5,1.27127327]
[1644643571767,0.35248171,2931.6,2931.5,1.10077327]
[1644643571970,0.35248171,2931.9,2931.5,1.10077327]
[1644643572168,0.35248171,2931.8,2931.6,1.08988596]
[1644643572366,0.00758921,2932.0,2931.6,1.08988596]
[1644643572367,0.35248171,2931.7,2931.6,1.08988596]
[1644643572620,0.35248171,2931.9,2931.6,1.08988596]
[1644643572815,0.00858921,2932.0,2931.6,1.08988596]
[1644643572816,0.35248171,2931.8,2931.6,1.08988596]
[1644643573015,0.35348171,2931.9,2931.5,0.01290895]
[1644643573215,0.35248171,2931.8,2931.5,0.01290895]
[1644643573415,0.35248171,2931.7,2931.5,0.01944438]
[1644643574016,0.35248171,2931.6,2931.5,0.01944438]
[1644643574415,0.35248171,2931.6,2931.5,0.01290895]
[1644643574618,0.64357038,2932.0,2931.5,1.10284883]
[1644643574619,1.00464134,2932.0,2931.5,1.10284883]
[1644643574819,0.35348171,2931.9,2931.5,0.01290895]
[1644643575820,0.35248171,2931.8,2931.5,0.01944451]
[1644643576018,0.35248171,2931.7,2931.5,0.01944451]
[1644643576218,0.001,2931.9,2931.6,1.0898432]
[1644643576462,0.00758955,2932.0,2931.6,1.0898432]
[1644643576662,0.35303122,2931.9,2931.6,1.0898432]
[1644643576864,0.35303122,2931.8,2931.6,1.0898432]
[1644643577062,0.81507038,2932.1,2931.5,0.86579895]
[1644643577063,0.35303122,2931.7,2931.5,0.01944451]
[1644643577264,0.65216002,2932.0,2931.5,0.01944451]
[1644643577265,0.35303122,2931.6,2931.5,0.01944451]
[1644643577865,0.35303122,2931.6,2931.5,0.01290895]
[1644643578066,0.35403122,2932.0,2931.5,1.10251406]
[1644643578267,0.35303122,2931.9,2931.6,1.08958122]
[1644643578866,1.00519085,2932.0,2931.5,0.01290895]
[1644643579066,0.35403122,2931.9,2931.5,0.01290895]
[1644643579266,0.35303122,2931.8,2931.5,0.01290895]
[1644643579466,0.35303122,2931.7,2931.5,0.01944449]
[1644643579668,0.35303122,2931.6,2931.5,0.01944449]
[1644643580323,0.35403122,2931.9,2931.5,1.10235839]
[1644643580522,0.35303122,2931.8,2931.5,0.01290895]
[1644643580723,0.35303122,2931.7,2931.5,0.01290895]
[1644643580923,0.35303122,2931.6,2931.5,0.01290895]
[1644643581124,0.35303122,2931.6,2931.5,1.1022292]